bitfinex-derivatives/quotes_ETHF0:USTF0_20250214
["timestamp","ask_amount","ask_price","bid_price","bid_amount"]
[1739518208303,41.53956,2703.9,2703.8,2.44743682]
[1739518208510,41.53956,2703.9,2703.8,1.70784682]
[1739518208908,41.53956,2703.9,2703.8,2.44743682]
[1739518209798,41.53956,2703.9,2703.8,1.70784682]
[1739518209799,40.8,2703.9,2703.8,1.70784682]
[1739518210005,41.53956,2703.9,2703.8,2.44743682]
[1739518210609,41.53956,2703.9,2703.8,1.70784682]
[1739518211009,40.8,2703.9,2703.8,2.44743682]
[1739518211207,41.53956,2703.9,2703.8,2.44743682]
[1739518211601,41.53956,2703.9,2703.8,1.70784682]
[1739518212910,41.53956,2703.9,2703.8,2.44743682]
[1739518213603,41.53956,2703.9,2703.8,1.70784682]
[1739518214109,41.53956,2703.9,2703.8,2.44743682]
[1739518214309,41.53956,2703.9,2703.8,1.70784682]
[1739518215001,40.8,2703.9,2703.8,2.44743682]
[1739518215205,41.53956,2703.9,2703.8,2.44743682]
[1739518215910,40.8,2703.9,2703.8,2.44743682]
[1739518218606,41.53956,2703.9,2703.8,1.70784682]
[1739518219111,41.53956,2703.9,2703.8,2.44743682]
[1739518219707,41.53956,2703.9,2703.8,1.70784682]
[1739518220008,44.74736,2703.9,2703.8,0.00554682]
[1739518220209,44.76386,2703.9,2703.8,0.00554682]
[1739518221206,0.73977,2703.2,2703.1,0.73976]
[1739518221406,2.03992492,2703.2,2703.1,1.717]
[1739518221910,42.83992492,2703.2,2703.1,1.1337]
[1739518222505,42.83992492,2703.2,2703.1,0.5577]
[1739518222806,0.7398,2703.0,2702.9,0.00554682]
[1739518223004,2.03995492,2703.0,2702.9,0.00554682]
[1739518223712,42.83995492,2703.0,2702.9,0.00554682]
[1739518225606,3.2078,2703.1,2702.9,0.00554682]
[1739518225806,3.21334682,2703.4,2703.3,0.73972]
[1739518226005,3.21334682,2703.4,2703.3,2.03987492]
[1739518226202,0.00554682,2703.4,2703.3,2.03987492]
[1739518226408,0.00554682,2703.4,2703.3,1.30502]
[1739518226600,40.80554682,2703.4,2703.3,1.30502]
[1739518227006,2.03969492,2704.0,2703.8,0.73957]
[1739518227203,2.03969492,2704.0,2703.9,0.5861]
[1739518227412,4.50795492,2704.2,2703.9,1.88625492]
[1739518227610,0.73952,2704.1,2703.9,1.88625492]
[1739518227814,2.03968492,2704.0,2703.9,0.5861]
[1739518228004,42.83968492,2704.0,2703.9,0.5861]
[1739518229408,0.73961,2703.7,2703.6,0.5556]
[1739518229607,0.73961,2703.7,2703.6,1.1355]
[1739518230106,0.73969,2703.4,2703.3,0.5653]
[1739518230306,41.53969,2703.4,2703.3,0.5799]
[1739518232110,40.8,2703.4,2703.0,1.29539]
[1739518232308,0.73975,2703.2,2703.1,0.5859]
[1739518233219,0.73975,2703.2,2703.1,1.32568]
[1739518233609,0.73975,2703.2,2703.1,0.5859]
[1739518233918,40.8,2703.2,2703.1,1.32568]
[1739518234615,40.8,2703.2,2703.1,0.5859]
[1739518234820,40.8,2703.2,2702.9,0.00554682]
[1739518235016,40.8,2703.2,2702.9,3.21334682]
[1739518235212,40.8,2703.2,2703.1,2.90649276]
[1739518235520,40.8,2703.2,2703.1,3.64627276]
[1739518236713,1.574,2704.1,2703.2,1.84934]
[1739518236913,0.00554682,2704.2,2704.1,0.7395]
[1739518237110,0.00554682,2704.2,2704.1,3.7508]
[1739518237314,3.7543,2704.8,2704.1,3.7508]
[1739518237315,0.73941,2704.5,2704.2,0.73946]
[1739518237507,40.8,2704.3,2704.1,3.7508]
[1739518237712,0.73948,2704.2,2704.1,0.543]
[1739518238120,3.94728,2704.2,2704.1,0.543]
[1739518238309,40.8,2704.2,2704.1,0.543]
[1739518238512,41.53948,2704.2,2704.1,0.543]
[1739518238712,44.74728,2704.2,2704.1,0.543]
[1739518238912,44.0078,2704.2,2703.9,0.5932]
[1739518239109,0.73953,2704.0,2703.9,0.5932]
[1739518239521,3.2078,2704.2,2703.4,0.5733]
[1739518239725,41.53967,2703.5,2703.4,1.1167]
[1739518240622,40.8,2703.5,2703.4,1.7075]
[1739518240914,40.8,2703.5,2703.4,2.44719]
[1739518242521,40.8,2703.5,2703.4,1.7075]
[1739518242716,41.53967,2703.5,2703.4,1.7075]
[1739518242922,40.8,2703.5,2703.4,1.7075]
[1739518243121,40.8,2703.5,2703.4,2.44719]
[1739518243321,41.53967,2703.5,2703.4,1.7075]
[1739518243923,40.8,2703.5,2703.4,2.44719]
[1739518245415,0.5869,2704.1,2703.4,4.61399276]
[1739518245617,0.7395,2704.2,2704.0,0.73953]
[1739518245817,5.3679,2704.5,2704.1,0.5538]
[1739518246025,5.3605,2704.5,2704.1,0.5538]
[1739518246217,0.73947,2704.3,2704.1,1.29328]
[1739518246523,41.53948,2704.2,2704.1,0.5538]
[1739518247224,40.8,2704.2,2704.1,1.2933]
[1739518247418,41.53948,2704.2,2704.1,1.6977]
[1739518247820,41.53948,2704.2,2704.1,2.4372]
[1739518248220,41.53948,2704.2,2704.1,1.6977]
[1739518248622,41.53948,2704.2,2704.1,0.5538]
[1739518248818,40.8,2704.2,2703.7,2.90649276]
[1739518249127,0.73964,2703.6,2703.5,5.11147]
[1739518249325,0.73964,2703.6,2703.5,4.3718]
[1739518249732,41.53964,2703.6,2703.5,4.3718]
[1739518250231,41.53964,2703.6,2703.5,3.7774]
[1739518251426,41.53964,2703.6,2703.5,0.5696]
[1739518254731,40.8,2703.6,2703.5,0.5696]
[1739518254932,40.8,2703.6,2703.5,1.30927]
[1739518258423,40.8,2703.6,2703.5,2.88627]
[1739518266439,0.73948,2704.2,2704.1,0.73949]
[1739518266646,0.73948,2704.2,2704.1,3.64598276]
[1739518267340,41.53948,2704.2,2704.1,3.64598276]
[1739518267736,41.53948,2704.2,2704.1,2.90649276]
[1739518268442,0.73953,2704.0,2703.9,1.83664]
[1739518269146,0.73952,2704.1,2704.0,0.73953]
[1739518269852,41.53952,2704.1,2704.0,0.73953]
[1739518270743,0.73953,2704.0,2703.9,1.83664]
[1739518271749,0.73956,2703.9,2703.8,6.85387276]
[1739518271956,0.73956,2703.9,2703.8,3.2078]
[1739518272357,0.73956,2703.9,2703.8,3.94739]
[1739518272652,0.7396,2703.8,2703.7,0.73959]
[1739518273453,0.7396,2703.8,2703.6,2.7081]
[1739518273755,40.8,2703.7,2703.6,2.7081]
[1739518274061,40.8,2703.7,2703.6,3.44774]
[1739518274551,40.8,2703.7,2703.6,1.1321]
[1739518274760,40.8,2703.7,2703.6,1.87174]
[1739518276254,40.8,2703.7,2703.6,1.1321]
[1739518276460,41.53961,2703.7,2703.6,1.1321]
[1739518280459,40.8,2703.7,2703.5,6.68829276]
[1739518280661,0.73964,2703.6,2703.5,6.11429276]
[1739518280861,0.73964,2703.6,2703.5,3.2078]
[1739518281163,41.53964,2703.6,2703.5,3.2078]
[1739518283063,0.73972,2703.3,2703.2,6.11429276]
[1739518283763,41.53972,2703.3,2703.2,6.11429276]
[1739518284666,40.8,2703.3,2703.2,6.11429276]
[1739518284865,40.8,2703.3,2703.2,6.85404276]
[1739518289466,41.53972,2703.3,2703.2,6.85404276]
[1739518289661,41.53972,2703.3,2703.2,6.11429276]
[1739518289870,40.8,2703.3,2703.0,19.372]
[1739518290071,0.7398,2703.0,2702.9,6.11983958]
[1739518290371,0.7398,2703.0,2702.9,7.42205958]
[1739518290572,41.5398,2703.0,2702.9,7.42205958]
[1739518290773,41.5398,2703.0,2702.9,6.68223958]
[1739518291264,41.5398,2703.0,2702.9,7.42206958]
[1739518291464,40.8,2703.0,2702.9,7.42206958]
[1739518292267,40.8,2703.0,2702.9,4.51557682]
[1739518298375,40.8,2703.0,2702.9,4.40611161]
[1739518302273,41.5398,2703.0,2702.9,4.40611161]
[1739518302473,40.8,2703.0,2702.9,4.40611161]
[1739518305177,41.5398,2703.0,2702.9,3.66628161]
[1739518306277,40.8,2703.0,2702.9,3.66628161]
[1739518306577,41.5398,2703.0,2702.9,4.40611161]
[1739518306767,40.8,2703.0,2702.9,4.40611161]
[1739518306971,41.5398,2703.0,2702.9,4.40611161]
[1739518307172,41.5398,2703.0,2702.9,3.66628161]
[1739518307974,41.5398,2703.0,2702.9,3.10388161]
[1739518308369,41.5398,2703.0,2702.7,2.91203958]
[1739518308370,0.73986,2702.8,2702.7,2.91203958]
[1739518309169,41.53986,2702.8,2702.7,2.91203958]
[1739518309581,41.53986,2702.8,2702.7,0.00554682]
[1739518312782,41.53986,2702.8,2702.7,2.91203958]
[1739518313081,40.8,2702.8,2702.7,3.65191958]
[1739518315278,41.53986,2702.8,2702.7,3.65191958]
[1739518316083,41.53986,2702.8,2702.7,3.3103297]
[1739518317283,40.8,2702.8,2702.7,3.3103297]
[1739518318688,41.53986,2702.8,2702.7,3.3103297]
[1739518318883,40.8,2702.8,2702.7,2.5704497]
[1739518319084,40.8,2702.8,2702.7,3.3103297]
[1739518319892,41.53986,2702.8,2702.7,3.3103297]
[1739518320286,40.8,2702.8,2702.7,2.5704497]
[1739518320487,41.53986,2702.8,2702.7,2.5704497]
[1739518320891,41.53986,2702.8,2702.7,3.3103297]
[1739518321194,40.8,2702.8,2702.7,3.3103297]
[1739518321594,40.8,2702.8,2702.7,3.8593297]
[1739518322592,0.00554682,2703.0,2702.9,0.73983]
[1739518322888,0.00554682,2703.0,2702.9,3.94763]
[1739518323091,0.5748,2703.4,2702.9,3.2078]
[1739518323289,0.5748,2703.4,2703.3,2.90649276]
[1739518323290,0.73971,2703.4,2703.3,2.90649276]
[1739518323590,41.53971,2703.4,2703.3,2.90649276]
[1739518325691,40.8,2703.4,2703.2,0.5584]
[1739518325893,0.73972,2703.3,2703.2,0.21275049]
[1739518326589,41.53972,2703.3,2703.2,0.21275049]
[1739518332489,41.53972,2703.3,2703.2,0.95250049]
[1739518332691,41.53972,2703.3,2703.2,0.21275049]
[1739518333793,41.53972,2703.3,2703.2,0.95250049]
[1739518333995,40.8,2703.3,2703.2,0.95250049]
[1739518334197,41.53972,2703.3,2703.2,0.95250049]
[1739518335096,41.53972,2703.3,2703.2,0.21275049]
[1739518335296,41.53972,2703.3,2703.2,3.42055049]
[1739518335499,40.8,2703.3,2703.2,3.42055049]
[1739518335704,41.53972,2703.3,2703.2,4.16030049]
[1739518335900,41.53972,2703.3,2703.2,3.83195815]
[1739518336411,40.8,2703.3,2703.2,3.83195815]
[1739518336710,0.35874682,2703.6,2703.2,4.94158815]
[1739518336711,0.74519682,2703.6,2703.2,4.94158815]
[1739518336894,0.74519682,2703.6,2703.5,3.64616276]
[1739518336895,0.74518682,2703.6,2703.5,3.64616276]
[1739518337705,41.54518682,2703.6,2703.5,2.90649276]
[1739518338899,41.54518682,2703.6,2703.5,3.48119276]
[1739518342808,41.54518682,2703.6,2703.5,0.5747]
[1739518345316,0.73967,2703.5,2703.4,0.5847]
[1739518345506,0.73969,2703.4,2703.3,3.2078]
[1739518346108,41.53969,2703.4,2703.3,3.2078]
[1739518346508,41.53969,2703.4,2703.3,3.94752]
[1739518346708,41.53969,2703.4,2703.3,3.82680799]
[1739518347118,41.53969,2703.4,2703.3,3.08708799]
[1739518348113,41.53969,2703.4,2703.3,3.82680799]
[1739518348912,40.8,2703.4,2703.3,3.82680799]
[1739518349115,40.8,2703.4,2703.3,4.40880799]
[1739518349611,40.8,2703.4,2703.3,5.70947903]
[1739518351716,40.8,2703.4,2703.3,4.40880799]
[1739518353310,41.53969,2703.4,2703.3,3.66908799]
[1739518353508,0.73972,2703.3,2703.2,1.574]
[1739518354319,41.53972,2703.3,2703.2,1.574]
[1739518354515,41.53972,2703.3,2703.2,1.44974376]
[1739518354913,0.73978,2703.1,2703.0,3.7512]
[1739518355417,0.73986,2702.8,2702.7,3.2078]
[1739518355618,0.73991,2702.6,2702.5,2.12204682]
[1739518355815,0.73991,2702.6,2702.5,0.00554682]
[1739518356219,41.53991,2702.6,2702.5,0.00554682]
[1739518359618,40.8,2702.6,2702.0,3.6463623]
[1739518359817,40.8,2702.6,2702.2,0.74002]
[1739518359818,0.74001,2702.3,2702.2,0.74002]
[1739518360720,41.54001,2702.3,2702.2,0.74002]
[1739518361418,40.8,2702.3,2702.1,0.74003]
[1739518361623,41.54001,2702.3,2702.1,0.74005]
[1739518361923,0.12404219,2702.1,2702.0,3.65192912]
[1739518362823,0.5658,2702.5,2702.0,3.65192912]
[1739518362824,0.73995,2702.5,2702.0,0.00554682]
[1739518363021,0.73992,2702.6,2702.3,3.6462823]
[1739518363226,40.8,2702.4,2702.3,3.6462823]
[1739518363428,40.8,2702.4,2702.3,2.9063023]
[1739518363930,40.8,2702.4,2702.3,3.5033023]
[1739518365329,40.8,2702.4,2702.3,4.2432923]
[1739518366825,40.8,2702.4,2702.3,3.5033023]
[1739518367226,41.53997,2702.4,2702.3,3.5033023]
[1739518367425,41.53997,2702.4,2702.3,2.9063023]
[1739518368023,40.8,2702.4,2702.3,3.6462923]
[1739518370836,1.3277,2703.0,2702.9,0.73983]
[1739518371032,1.3277,2703.0,2702.4,1.84987]
[1739518371033,1.32772,2703.0,2702.8,2.9063023]
[1739518371230,0.5879,2703.0,2702.8,2.9063023]
[1739518371533,0.73983,2702.9,2702.8,2.9063023]
[1739518371733,0.73983,2702.9,2702.8,3.4627023]
[1739518371929,41.53983,2702.9,2702.8,3.4627023]
[1739518372433,41.53983,2702.9,2702.8,2.9063023]
[1739518372733,0.73986,2702.8,2702.7,0.5536]
[1739518373330,41.53986,2702.8,2702.7,0.5536]
[1739518376138,41.53986,2702.8,2702.7,1.29348]
[1739518376537,41.53986,2702.8,2702.7,0.5536]
[1739518378241,41.53986,2702.8,2702.7,1.29348]
[1739518378942,41.53986,2702.8,2702.7,0.5536]
[1739518379344,41.53986,2702.8,2702.7,1.29348]
[1739518380440,41.53986,2702.8,2702.7,0.5536]
[1739518380637,40.8,2702.8,2702.7,1.29348]
[1739518380942,41.53986,2702.8,2702.7,1.29348]
[1739518381146,40.8,2702.8,2702.7,1.29348]
[1739518382042,41.53986,2702.8,2702.7,1.29348]
[1739518382635,41.53986,2702.8,2702.7,0.5536]
[1739518383142,40.8,2702.8,2702.6,0.5564]
[1739518383444,0.73991,2702.6,2702.5,3.2078]
[1739518383840,41.53991,2702.6,2702.5,3.2078]
[1739518385239,41.53991,2702.6,2702.5,3.94774]
[1739518385543,40.8,2702.6,2702.5,6.8540423]
[1739518386544,40.8,2702.6,2702.5,8.4290423]
[1739518390946,40.8,2702.6,2702.5,6.1141023]
[1739518391246,40.8,2702.6,2702.5,6.8540423]
[1739518393157,0.73979,2703.1,2702.9,0.73982]
[1739518393359,0.73979,2703.1,2703.0,1.6875]
[1739518393556,0.5663,2703.2,2703.0,0.6875]
[1739518393951,0.5663,2703.2,2702.8,2.9063023]
[1739518394152,0.73983,2702.9,2702.8,2.9063023]
[1739518394558,0.73982,2703.0,2702.8,2.9063023]
[1739518394759,41.53983,2702.9,2702.8,2.9063023]
[1739518394956,40.8,2702.9,2702.8,2.9063023]
[1739518395361,40.8,2702.9,2702.8,3.6461623]
[1739518395755,41.53983,2702.9,2702.8,3.6461623]
[1739518395955,40.8,2702.9,2702.8,3.6461623]
[1739518396158,40.8,2702.9,2702.8,6.8539623]
[1739518396762,40.8,2702.9,2702.8,7.9647623]
[1739518397367,41.53983,2702.9,2702.8,7.2249023]
[1739518397659,41.53983,2702.9,2702.8,3.2078]
[1739518398065,40.8,2702.9,2702.5,4.0152023]
[1739518398367,0.5898,2702.8,2702.4,4.53117]
[1739518398562,0.73993,2702.6,2702.4,4.53117]
[1739518398762,1.6967,2702.8,2702.4,3.7912]
[1739518398963,0.73993,2702.6,2702.4,4.53116]
[1739518399763,1.32968,2702.8,2702.6,0.7399]
[1739518399959,1.32966,2702.8,2702.7,0.586]
[1739518400359,42.12966,2702.8,2702.7,0.586]
[1739518400568,42.12966,2702.8,2702.7,1.32588]
[1739518400766,42.12966,2702.8,2702.7,0.586]
[1739518401866,0.73991,2702.7,2702.5,3.6462323]
[1739518402068,0.73994,2702.5,2702.4,3.2078]
[1739518402463,0.5613,2702.7,2702.4,3.94776]
[1739518402662,40.8,2702.5,2702.4,3.94776]
[1739518402964,41.53994,2702.5,2702.4,3.2078]
[1739518403560,40.8,2702.5,2702.4,3.94777]
[1739518403758,41.53994,2702.5,2702.4,3.2078]
[1739518404668,40.8,2702.5,2702.2,3.4466023]
[1739518404964,0.5811,2702.4,2702.3,0.73999]
[1739518405769,41.3811,2702.4,2702.3,0.73999]
[1739518406975,41.3811,2702.4,2702.2,4.1866023]
[1739518407271,0.73999,2702.3,2702.2,3.4466023]
[1739518407476,1.32108,2702.4,2702.2,4.1866123]
[1739518407970,40.8,2702.3,2702.2,4.1866123]
[1739518408172,40.8,2702.3,2702.2,3.4466023]
[1739518408364,40.8,2702.3,2702.2,4.1866223]
[1739518418076,0.73982,2703.0,2702.7,0.73986]
[1739518418379,1.32002,2703.0,2702.8,4.7524523]
[1739518418678,1.32002,2703.0,2702.8,5.3453523]
[1739518418978,3.94759,2703.1,2702.9,0.73983]
[1739518419274,0.5802,2703.2,2703.0,0.73979]
[1739518419480,40.8,2703.1,2703.0,0.73979]
[1739518420270,0.73983,2702.9,2702.8,4.6055023]
[1739518420472,40.8,2703.1,2702.8,4.6055023]
[1739518420669,0.7398,2703.0,2702.8,4.6055023]
[1739518420874,0.5767,2703.0,2702.8,4.6055023]
[1739518421078,0.73983,2702.9,2702.8,4.6055023]
[1739518421474,0.5767,2703.0,2702.8,4.6055023]
[1739518421780,41.53983,2702.9,2702.8,4.6055023]
[1739518423075,40.8,2702.9,2702.8,5.3453623]
[1739518423773,40.8,2702.9,2702.8,4.6055023]
[1739518423774,41.53983,2702.9,2702.8,4.6055023]
[1739518424177,0.73991,2702.6,2702.5,2.9063023]
[1739518424878,41.53991,2702.6,2702.5,2.9063023]
[1739518425776,40.8,2702.6,2702.5,3.6462423]
[1739518428774,40.8,2702.6,2702.5,2.9063023]
[1739518428979,41.53991,2702.6,2702.5,1.574]
[1739518429183,0.73994,2702.5,2702.4,3.2078]
[1739518429476,1.30864,2702.5,2702.4,3.2078]
[1739518429878,5.05729,2703.1,2702.4,3.2078]
[1739518430072,1.16,2703.0,2702.5,3.6462223]
[1739518430275,0.73987,2702.8,2702.6,0.73991]
[1739518430574,40.8,2702.7,2702.6,0.73991]
[1739518431283,0.73991,2702.6,2702.5,2.9063023]
[1739518431877,0.73994,2702.5,2702.4,3.2078]
[1739518432084,0.73991,2702.7,2702.4,3.2078]
[1739518432278,40.8,2702.5,2702.4,3.94775]
[1739518435181,40.8,2702.5,2702.4,3.2078]
[1739518435381,41.3963,2702.5,2702.4,3.2078]
[1739518435587,41.3963,2702.5,2702.4,3.94777]
[1739518435880,41.3963,2702.5,2702.4,3.2078]
[1739518436785,40.8,2702.5,2702.4,3.94777]
[1739518440388,40.8,2702.5,2702.4,3.2078]
[1739518440591,40.8,2702.5,2702.4,3.94777]
[1739518441091,41.53994,2702.5,2702.4,3.2078]
[1739518441484,40.8,2702.5,2702.4,3.94777]
[1739518442376,41.53994,2702.5,2702.4,3.2078]
[1739518443389,40.8,2702.5,2702.4,3.94777]
[1739518448296,40.8,2702.5,2702.4,0.73997]
[1739518448495,40.8,2702.5,2702.4,3.94777]
[1739518449097,41.53994,2702.5,2702.4,3.2078]
[1739518449396,40.8,2702.5,2702.4,3.94777]
[1739518455802,40.8,2702.5,2702.4,5.24910764]
[1739518461597,40.8,2702.5,2702.4,4.50913764]
[1739518461793,40.8,2702.5,2702.4,5.24910764]
[1739518462301,40.8,2702.5,2702.4,4.50913764]
[1739518462302,41.53994,2702.5,2702.4,4.50913764]
[1739518462902,42.12874,2702.5,2702.4,4.50913764]
[1739518464206,41.3888,2702.5,2702.4,4.50913764]
[1739518464407,42.12874,2702.5,2702.4,4.50913764]
[1739518464706,42.12874,2702.5,2702.2,2.87533764]
[1739518464707,0.73999,2702.3,2702.2,2.87533764]
[1739518464905,0.73999,2702.3,2702.2,1.30133764]
[1739518465599,41.53999,2702.3,2702.2,1.30133764]
[1739518467008,40.8,2702.3,2702.2,1.30133764]
[1739518467208,40.8,2702.3,2702.2,2.04135764]
[1739518467403,40.8,2702.3,2702.2,1.30133764]
[1739518467604,40.8,2702.3,2702.2,2.04135764]
[1739518471314,41.53999,2702.3,2702.2,1.30133764]
[1739518472510,41.53999,2702.3,2702.1,3.2078]
[1739518472511,0.74002,2702.2,2702.1,3.2078]
[1739518472712,2.47712,2702.2,2702.1,3.2078]
[1739518473419,43.27712,2702.2,2702.1,3.2078]
[1739518476815,0.74005,2702.1,2702.0,0.00554682]
[1739518477517,41.54005,2702.1,2702.0,0.00554682]
[1739518486012,43.11505,2702.1,2702.0,0.00554682]
[1739518486215,0.74019,2701.6,2701.5,4.52809]
[1739518486916,41.54019,2701.6,2701.5,4.52809]
[1739518487620,40.8,2701.6,2701.5,4.52809]
[1739518488416,40.8,2701.6,2701.5,3.94799]
[1739518488620,40.8,2701.6,2701.5,4.3794]
[1739518488918,40.8,2701.6,2701.5,5.11961]
[1739518505833,3.2078,2702.3,2701.5,5.11961]
[1739518506132,3.94781,2702.3,2702.0,0.74007]
[1739518506327,3.94781,2702.3,2702.1,1.7254]
[1739518506629,0.73997,2702.4,2702.1,2.46544]
[1739518506824,40.8,2702.2,2702.1,1.7254]
[1739518507625,40.8,2702.2,2702.1,3.02718008]
[1739518508021,41.54002,2702.2,2702.1,3.02718008]
[1739518508327,40.8,2702.2,2702.1,3.02718008]
[1739518509537,40.8,2702.2,2702.1,3.76723008]
[1739518509727,40.8,2702.2,2702.1,1.7254]
[1739518509930,40.8,2702.2,2702.1,2.46545]
[1739518511230,40.8,2702.2,2701.9,6.11640941]
[1739518511535,1.29476,2702.1,2701.9,3.2078]
[1739518511734,1.29477,2702.1,2701.9,3.2078]
[1739518512037,1.87687,2702.1,2701.9,3.2078]
[1739518512233,40.8,2702.0,2701.9,3.2078]
[1739518512533,40.8,2702.0,2701.9,3.9479]
[1739518513634,40.8,2702.0,2701.9,6.85650941]
[1739518514237,1.1368,2702.4,2702.0,0.74006]
[1739518514432,1.87677,2702.4,2702.1,0.74002]
[1739518515034,1.87677,2702.4,2702.1,1.30792]
[1739518515231,40.8,2702.2,2702.1,1.30792]
[1739518515837,40.8,2702.2,2702.1,0.5679]
[1739518516032,41.54002,2702.2,2702.1,0.5679]
[1739518516729,40.8,2702.2,2702.1,0.5679]
[1739518517231,41.54002,2702.2,2702.1,0.5679]
[1739518517628,40.8,2702.2,2702.1,0.5679]
[1739518517838,40.8,2702.2,2702.1,1.30795]
[1739518519035,40.8,2702.2,2702.1,0.5679]
[1739518520540,41.0,2702.2,2702.1,0.5679]
[1739518521237,41.0,2702.2,2702.1,1.30795]
[1739518521534,41.0,2702.2,2702.1,0.5679]
[1739518522140,41.74002,2702.2,2702.1,0.5679]
[1739518526337,0.74006,2702.1,2702.0,0.74007]
[1739518526642,0.94006,2702.1,2702.0,0.5418]
[1739518526842,1.48506,2702.1,2702.0,0.5418]
[1739518527334,42.28506,2702.1,2702.0,0.5418]
[1739518527535,42.28506,2702.1,2702.0,1.28188]
[1739518527935,42.28506,2702.1,2702.0,0.5418]
[1739518529643,42.28506,2702.1,2702.0,3.7496]
[1739518531543,42.28506,2702.1,2702.0,0.5418]
[1739518531752,42.28506,2702.1,2702.0,5.05147909]
[1739518532742,42.28506,2702.1,2702.0,3.7496]
[1739518537160,0.00554682,2702.5,2702.0,5.05147909]
[1739518537362,0.74548682,2702.5,2702.4,1.30187909]
[1739518537556,0.74548682,2702.5,2702.4,1.84947909]
[1739518537853,0.74548682,2702.5,2702.4,0.5786]
[1739518538060,41.54548682,2702.5,2702.4,0.5786]
[1739518538762,41.38784682,2702.5,2702.3,3.2078]
[1739518538953,0.73997,2702.4,2702.3,3.2078]
[1739518539162,0.5954,2702.4,2702.1,1.1236]
[1739518539359,0.74002,2702.2,2702.1,1.1236]
[1739518539560,41.54002,2702.2,2702.1,1.1236]
[1739518540060,40.8,2702.2,2702.1,1.86365]
[1739518540658,40.8,2702.2,2702.1,1.1236]
[1739518540863,41.54002,2702.2,2702.1,1.1236]
[1739518542965,40.8,2702.2,2702.1,1.86365]
[1739518543162,41.54002,2702.2,2702.1,1.1236]
[1739518543461,40.8,2702.2,2702.1,1.1236]
[1739518543666,40.8,2702.2,2702.1,1.86365]
[1739518543964,40.8,2702.2,2702.1,1.1236]
[1739518543965,41.54002,2702.2,2702.1,1.1236]
[1739518554068,41.54002,2702.2,2702.1,1.86365]
[1739518554874,41.54002,2702.2,2702.1,1.1236]
[1739518556868,40.8,2702.2,2702.1,1.1236]
[1739518557063,41.54002,2702.2,2702.1,1.1236]
[1739518558471,40.8,2702.2,2702.1,1.1236]
[1739518558972,41.54002,2702.2,2702.1,1.1236]
[1739518559171,40.8,2702.2,2702.1,1.1236]
[1739518559371,40.8,2702.2,2702.1,1.86365]
[1739518568870,40.8,2702.2,2702.1,1.1236]
[1739518569174,40.8,2702.2,2702.0,3.7864]
[1739518569471,0.00554682,2702.5,2702.3,0.73998]
[1739518569775,0.74548682,2702.5,2702.4,1.1405]
[1739518569973,0.74548682,2702.5,2702.4,1.7044]
[1739518570162,0.00554682,2702.5,2702.4,1.7044]
[1739518570367,40.80554682,2702.5,2702.4,1.7044]
[1739518570773,41.54548682,2702.5,2702.4,1.7044]
[1739518573176,41.54548682,2702.5,2702.4,0.5948]
[1739518573377,0.74,2702.3,2702.1,1.1712]
[1739518573670,41.54549682,2702.5,2702.2,0.74]
[1739518573878,0.73997,2702.4,2702.2,0.74]
[1739518574272,40.80554682,2702.5,2702.2,0.74]
[1739518574273,41.54550682,2702.5,2702.2,0.74]
[1739518574974,0.73997,2702.4,2702.2,0.74]
[1739518575472,0.73999,2702.4,2702.2,0.74001]
[1739518575677,0.73999,2702.4,2702.3,1.6973]
[1739518575877,41.53999,2702.4,2702.3,1.6973]
[1739518577779,42.64993,2702.4,2702.0,3.2078]
[1739518577980,1.1483,2702.3,2702.0,4.3528]
[1739518578485,0.74005,2702.1,2702.0,4.3528]
[1739518579174,40.8,2702.1,2702.0,4.3528]
[1739518579375,40.8,2702.1,2702.0,5.09288]
[1739518579570,40.8,2702.1,2702.0,4.3528]
[1739518579773,41.54005,2702.1,2702.0,4.3528]
[1739518580282,41.54005,2702.1,2702.0,3.7826]
[1739518580584,41.54005,2702.1,2702.0,3.2078]
[1739518583586,0.74013,2701.8,2701.7,3.94796]
[1739518583781,40.8,2702.1,2701.7,3.94796]
[1739518583782,0.7401,2701.9,2701.7,3.94796]
[1739518584079,0.5716,2702.0,2701.9,0.7401]
[1739518584284,41.3716,2702.0,2701.8,1.89057909]
[1739518584484,42.11169,2702.0,2701.8,2.63068909]
[1739518584976,41.3716,2702.0,2701.8,1.89057909]
[1739518585176,0.7401,2701.9,2701.8,1.89057909]
[1739518585886,41.5401,2701.9,2701.8,1.89057909]
[1739518588186,40.8,2701.9,2701.8,1.89057909]
[1739518588887,40.8,2701.9,2701.8,2.63070909]
[1739518591677,40.8,2701.9,2701.8,1.89057909]
[1739518591877,41.5401,2701.9,2701.8,1.89057909]
[1739518592278,40.8,2701.9,2701.8,2.63070909]
[1739518593089,41.5401,2701.9,2701.8,1.89057909]
[1739518593687,40.8,2701.9,2701.8,1.89057909]
[1739518594389,40.8,2701.9,2701.8,2.63070909]
[1739518594779,41.5401,2701.9,2701.8,1.89057909]
[1739518594980,40.8,2701.9,2701.8,2.63070909]
[1739518595684,41.5401,2701.9,2701.8,1.89057909]
[1739518595887,40.8,2701.9,2701.8,2.63070909]
[1739518598981,41.5401,2701.9,2701.8,1.89057909]
[1739518599388,40.8,2701.9,2701.8,2.63070909]
[1739518599787,41.5401,2701.9,2701.8,1.89057909]
[1739518601087,41.5401,2701.9,2701.8,1.30187909]
[1739518603093,40.8,2701.9,2701.8,2.04200909]
[1739518605689,40.8,2701.9,2701.8,1.30187909]
[1739518605894,41.5401,2701.9,2701.8,1.30187909]
[1739518613601,40.8,2701.9,2701.8,4.50967909]